[Event "AI Cup Div-2 2023"]
[Site "Online"]
[Date "2023.09.25"]
[Round "1.4"]
[White "Niemann, Hans Moke"]
[Black "Duda, Jan-Krzysztof"]
[Result "0-1"]
[ECO "A23"]
[WhiteElo "2667"]
[BlackElo "2726"]
[Annotator "TA"]
[PlyCount "90"]
[EventDate "2023.09.18"]
[EventType "k.o."]
[EventCountry "NET"]
[SourceTitle "playchess.com"]
[Source "ChessBase"]
[SourceQuality "1"]
[TimeControl "900+3"]

{[%evp 9,90,18,15,11,31,45,40,39,48,24,37,43,36,20,14,13,22,21,14,25,19,0,14,0,18,-67,-15,-16,-5,-5,-18,-15,-10,-14,-22,-14,-14,-13,-8,-8,0,0,0,0,0,-22,-14,-19,-7,-15,0,0,0,0,0,0,0,0,0,-141,-147,-146,-140,-237,-177,-165,-179,-245,-225,-282,-308,-287,-287,-696,-551,-608,-351,-12810,-12808,-29983,-29984,-29993,-12830]} 1. c4 {[%emt 0:00:04]} Nf6 {[%emt 0:00:07]} 2. g3 {[%emt 0:00:05]} e5 {[%emt 0:00:05]} 3. Bg2 {[%emt 0:00:02]} Bc5 {[%emt 0:00:02]} 4. Nc3 {[%emt 0:00:04]} c6 {[%emt 0:00:02]} 5. e3 {[%emt 0:00:29]} d5 {[%emt 0:00:06]} 6. cxd5 {[%emt 0:00:05] A23: English Opening: 1...e5 2 Nc3 Nf6 3 g3 c6.} cxd5 {[%emt 0:00:00]} 7. d4 {[%emt 0:00:02]} exd4 {[%emt 0:00:00]} 8. exd4 {[%emt 0:00:01] White is slightly better.} Bb4 {[%emt 0:00:06]} 9. Nge2 {[%emt 0:00:02]} O-O {[%emt 0:00:05]} 10. O-O {[%emt 0:00:03]} h6 {[%emt 0:00:22] Prevents Bg5} 11. Qb3 {[%emt 0:00:06]} Bxc3 {[%emt 0:01:00]} 12. Nxc3 {[%emt 0:00:05]} Nc6 {[%emt 0:00:00]} 13. Be3 {[%emt 0:00:05][%cal Rc3d5]} ({Much worse is} 13. Bxd5 Nxd4 14. Qd1 Nxd5 $15) 13... Na5 {[%emt 0:00:09]} 14. Qb4 {[%emt 0:00:32]} Nc6 {[%emt 0:00:20] [#]} 15. Qa3 $146 {[%emt 0:00:28]} ({Predecessor:} 15. Qb5 a6 16. Qd3 b5 17. Rfc1 Ne7 18. h3 Bf5 19. Qd1 Qd7 20. Kh2 Bg6 21. Qb3 {1-0 Castillo,R (2067)-Trejos Vasquez,R NCA-chT final 2019 (4.3)}) 15... Bf5 {[%emt 0:00:06]} 16. h3 {[%emt 0:00:18]} a5 {[%emt 0:00:32]} 17. b3 {[%emt 0:00:14] [#]} (17. Qb3 $11) 17... b5 {[%emt 0:00:13]} 18. Qb2 $11 {[%emt 0:00:38]} Rc8 {[%emt 0:00:28]} 19. a3 {[%emt 0:01:19]} Re8 {[%emt 0:00:12]} 20. Rfc1 {[%emt 0:00:14]} b4 {[%emt 0:00:21]} 21. Ne2 {[%emt 0:00:11]} Qd7 {[%emt 0:00:59]} 22. Kh2 {[%emt 0:00:15]} Be4 {[%emt 0:00:55]} 23. axb4 {[%emt 0:00:05]} axb4 {[%emt 0:00:37]} 24. Qd2 {[%emt 0:00:15]} Bxg2 {[%emt 0:01:48]} 25. Kxg2 {[%emt 0:00:00]} Ne4 {[%emt 0:00:03]} 26. Qd3 {[%emt 0:00:02]} Ne7 $40 {[%emt 0:00:10][%mdl 128] Black attacks.} 27. f3 {[%emt 0:00:12] Rxc8 would be deadly.} Rxc1 {[%emt 0:00:17]} 28. Rxc1 {[%emt 0:00:04]} Ng5 {[%emt 0:00:02]} 29. Ng1 {[%emt 0:00:52]} Qf5 {[%emt 0:01:13]} 30. Qd2 {[%emt 0:00:18]} Ra8 {[%emt 0:00:15]} 31. Bf2 {[%emt 0:00:08]} Ng6 {[%emt 0:00:12]} 32. h4 {[%emt 0:00:13]} Ne6 {[%emt 0:00:02]} 33. Ne2 {[%emt 0:00:02]} Ra3 {[%emt 0:00:18]} 34. Qd1 {[%emt 0:01:15]} (34. g4 $11 {keeps the balance.} Ngf4+ 35. Nxf4 Qxf4 36. Rc8+ Kh7 37. Qc2+ (37. Qxb4 Ra2 $15) (37. Be3 Qf6 $11) 37... g6 38. h5) 34... Ra2 $17 {[%emt 0:00:07]} 35. Be3 {[%emt 0:00:50]} h5 {[%emt 0:00:11] Black has more active pieces.} 36. Rc8+ {[%emt 0:02:07]} (36. Kf2 $17 {keeps fighting.}) 36... Kh7 {[%emt 0:00:01]} 37. Rb8 {[%emt 0:00:02] Dodges Nef4+} Ne7 {[%emt 0:01:12][%cal Bg6e7,Be7f5,Bf5g3][%mdl 32] Strongly threatening ...Qg6.} 38. Rxb4 {[%emt 0:00:13] [#]} (38. Rb7 $142 Nc6 39. Kf2) 38... Qg6 $1 $19 {[%emt 0:00:06] Threatens to win with ...Nf5.} 39. Kf1 {[%emt 0:00:34]} Nf5 $1 {[%emt 0:00:37][%csl LRe3,LRg3]} 40. Bf2 {[%emt 0:00:11]} Rb2 {[%emt 0:00:00][%cal Of5h4] aiming for ...Nxh4!} 41. Rb8 $2 {[%emt 0:01:24] [#] Repels Nxh4} (41. Rb6 Rb1 42. Nc1) 41... Rb1 $3 {[%emt 0:00:52][%mdl 512]} 42. Nc1 {[%emt 0:00:04]} (42. Qxb1 Nxg3+) 42... Nxg3+ {[%emt 0:00:04]} 43. Ke1 $2 {[%emt 0:00:08]} (43. Bxg3 Qxg3 44. Qd3+ Qg6 45. Qxg6+ Kxg6 46. Rc8) 43... Nf4 {[%emt 0:00:13][%cal Ob1c1] ( -> ...Rxc1!)} 44. Be3 {[%emt 0:00:34]} Nd3+ {[%emt 0:00:10] Excellent horsemanship.} 45. Kd2 {[%emt 0:00:05]} Rxc1 {[%emt 0:00:04] An entertaining game by Duda.   Weighted Error Value: White=0.56/Black=0.20 (precise)} (45... Rb2+ $142 46. Qc2 Nf1+ {[%mdl 64] Deflection} 47. Kd1 Nxe3+ 48. Ke2 Rxc2+ 49. Kxe3 Qh6+ {[%mdl 64] Skewer} 50. f4 Qxf4+ 51. Kxd3 Qe4#) 0-1

[Event "AI Cup Div-2 2023"]
[Site "Online"]
[Date "2023.09.25"]
[Round "1.4"]
[White "Saric, Ivan"]
[Black "Dominguez Perez, Leinier"]
[Result "1/2-1/2"]
[ECO "D02"]
[WhiteElo "2647"]
[BlackElo "2745"]
[Annotator "TA"]
[PlyCount "124"]
[EventDate "2023.09.18"]
[EventType "k.o."]
[EventCountry "NET"]
[SourceTitle "playchess.com"]
[Source "ChessBase"]
[SourceQuality "1"]
[TimeControl "900+3"]

{[%evp 9,124,-21,-20,-19,-17,-20,-26,-13,-21,-17,-28,-32,-16,-22,-24,-25,-34,-17,-13,-42,-37,-49,0,0,0,0,0,0,14,0,14,14,13,18,10,0,25,0,0,-75,-8,-8,-6,-14,-13,-29,-27,-29,-8,-8,-7,-7,0,0,0,0,0,0,0,0,0,0,0,0,0,0,0,-16,-16,-16,-16,-16,-16,-41,-41,-41,-16,-16,-16,-16,-12,-12,-12,-12,0,-24,0,0,0,0,0,0,0,0,0,0,0,0,0,0,0,0,0,0,0,0,0,0,0,0,0,0,0,0,0,0,0]} 1. d4 {[%emt 0:00:14]} Nf6 {[%emt 0:00:08]} 2. Nf3 {[%emt 0:00:01]} d5 {[%emt 0:00:01]} 3. c3 {[%emt 0:00:01]} e6 {[%emt 0:00:06]} 4. Bg5 {[%emt 0:00:04]} h6 {[%emt 0:00:09]} 5. Bh4 {[%emt 0:00:04]} g5 {[%emt 0:00:10]} 6. Bg3 {[%emt 0:00:01] D02: 1 d4 d5 2 Nf3 sidelines, including 2...Nf6 3 g3 and 2...Nf6 3 Bf4.} Ne4 $1 {[%emt 0:00:00] Strongly threatening ...h5.} 7. Nfd2 {[%emt 0:00:24]} Nxg3 {[%emt 0:00:13]} 8. hxg3 {[%emt 0:00:00] Black has an edge.} c5 {[%emt 0:00:12]} 9. e3 {[%emt 0:00:11]} Nc6 {[%emt 0:00:02]} 10. Bd3 {[%emt 0:00:24] [#]} Bd7 $146 {[%emt 0:00:24]} (10... Qb6 $5 {[%cal Rc5c4]} 11. Qb3 Bd7 $15) ({Predecessor:} 10... Qb6 11. Qc1 Bd7 12. dxc5 Qxc5 13. Nb3 Qe7 14. Na3 Bg7 15. Qd2 Rc8 16. e4 d4 {0-1 Hebden,M (2453)-Kuzubov,Y (2642) Titled Tuesday intern op 15st Dec blitz 2020 (6)}) 11. dxc5 {[%emt 0:00:34]} Bxc5 {[%emt 0:00:12]} 12. Nb3 {[%emt 0:00:02]} Be7 {[%emt 0:02:36]} 13. N1d2 {[%emt 0:00:01]} Qc7 {[%emt 0:00:13]} 14. Rc1 {[%emt 0:00:11]} Ne5 {[%emt 0:00:58]} 15. Be2 {[%emt 0:00:10]} b5 {[%emt 0:00:02]} (15... O-O-O $15 {is superior.}) 16. Nd4 $11 {[%emt 0:00:45]} Nc4 {[%emt 0:01:07]} 17. b3 {[%emt 0:00:29]} Nxd2 {[%emt 0:00:07]} 18. Qxd2 {[%emt 0:00:05]} Qb6 {[%emt 0:00:02]} 19. Qd3 {[%emt 0:01:35][%cal Rd4b5]} a6 {[%emt 0:00:25]} 20. e4 {[%emt 0:00:59]} dxe4 {[%emt 0:00:33]} 21. Qxe4 {[%emt 0:00:00]} Rc8 {[%emt 0:00:02]} 22. O-O {[%emt 0:00:25]} O-O {[%emt 0:00:37][%cal Bh8f8,Bf8d8,Bd8d4][%mdl 32]} 23. g4 {[%emt 0:00:32] [#] Hoping for Bd3.} (23. Bd3 $5 {[%cal Re4h7]} f5 24. Qe3 $11) 23... Bc6 {[%emt 0:00:04]} 24. Qb1 {[%emt 0:01:56]} (24. Nxc6 $11 Qxc6 25. Qxc6 Rxc6 26. Rfd1) 24... Bf6 {[%emt 0:00:24]} ({Better is} 24... Bd5 $17) 25. Nxc6 {[%emt 0:00:36]} Rxc6 {[%emt 0:00:03]} 26. Qe4 {[%emt 0:00:21]} Rd8 {[%emt 0:00:05]} 27. c4 {[%emt 0:00:39]} ({Of course not} 27. Bd3 Rxc3 28. Rxc3 (28. Qh7+ Kf8 $17) 28... Bxc3 $17) (27. Qf3 $5 {[%cal Rf3f6]} Kg7 28. Rc2 $11) 27... Rd4 {[%emt 0:01:28]} 28. Qe3 {[%emt 0:00:01]} b4 {[%emt 0:00:07]} 29. g3 {[%emt 0:00:11] White is weak on the dark squares} Qc5 {[%emt 0:00:26]} 30. Kg2 {[%emt 0:00:32]} Rd8 {[%emt 0:00:40]} 31. Qxc5 {[%emt 0:00:16]} Rxc5 {[%emt 0:00:01]} 32. Rcd1 {[%emt 0:00:10] Repels Rd2} Kf8 {[%emt 0:00:25]} 33. Rxd8+ {[%emt 0:00:04]} Bxd8 {[%emt 0:00:01][%mdl 4096] Endgame KRB-KRB} 34. Rd1 {[%emt 0:00:31]} Ke7 {[%emt 0:00:54]} 35. Bf3 {[%emt 0:00:01]} Bb6 {[%emt 0:00:19]} 36. Bb7 {[%emt 0:00:11]} Rc7 {[%emt 0:00:22]} 37. Be4 {[%emt 0:00:43]} Rd7 {[%emt 0:00:03]} 38. Rc1 {[%emt 0:00:03]} Bc5 {[%emt 0:00:04]} 39. Rc2 {[%emt 0:00:12]} Rd4 {[%emt 0:00:10]} 40. Re2 {[%emt 0:00:06]} a5 {[%emt 0:00:16]} 41. f4 {[%emt 0:00:05]} Rd1 {[%emt 0:00:05]} 42. f5 {[%emt 0:00:04]} Kf6 {[%emt 0:00:09]} 43. fxe6 {[%emt 0:00:09]} fxe6 {[%emt 0:00:02]} 44. Bb7 {[%emt 0:00:02]} Rg1+ {[%emt 0:00:44]} 45. Kh2 {[%emt 0:00:49]} Rf1 {[%emt 0:00:02]} 46. Kg2 {[%emt 0:00:01]} Rg1+ {[%emt 0:00:01]} 47. Kh3 {[%emt 0:00:02]} Rf1 {[%emt 0:00:23]} 48. Bc8 {[%emt 0:00:07] The position is equal.} e5 {[%emt 0:00:01]} 49. Kg2 {[%emt 0:00:22]} Rd1 {[%emt 0:00:12]} 50. Bb7 {[%emt 0:00:17]} Bd4 {[%emt 0:00:03]} 51. Kf3 {[%emt 0:00:21]} Bc5 {[%emt 0:00:26]} 52. Rh2 {[%emt 0:00:36]} Rd3+ {[%emt 0:00:03]} 53. Ke2 {[%emt 0:00:04]} Rxg3 {[%emt 0:00:10] And now ...e4 would win.} 54. Rxh6+ {[%emt 0:00:03]} Ke7 {[%emt 0:00:19]} 55. Ra6 {[%emt 0:00:28]} e4 {[%emt 0:00:13]} 56. Rxa5 {[%emt 0:00:04]} Rg2+ {[%emt 0:00:13]} 57. Kf1 {[%emt 0:00:03]} Rg1+ {[%emt 0:00:01]} 58. Ke2 {[%emt 0:00:00]} Rg2+ {[%emt 0:00:01]} 59. Kd1 {[%emt 0:00:05]} Rg1+ {[%emt 0:00:01]} 60. Kd2 {[%emt 0:00:01]} Rg2+ {[%emt 0:00:02]} 61. Ke1 {[%emt 0:00:02]} Rg1+ {[%emt 0:00:01]} 62. Ke2 {[%emt 0:00:01]} Rg2+ {[%emt 0:00:01] Weighted Error Value: White=0.05 (flawless) /Black=0.06 (flawless)} 1/2-1/2

[Event "AI Cup Div-2 2023"]
[Site "Online"]
[Date "2023.09.25"]
[Round "1.4"]
[White "Kuzubov, Yuriy"]
[Black "Fedoseev, Vladimir"]
[Result "0-1"]
[ECO "B06"]
[WhiteElo "2625"]
[BlackElo "2683"]
[Annotator "TA"]
[PlyCount "72"]
[EventDate "2023.09.18"]
[EventType "k.o."]
[EventCountry "NET"]
[SourceTitle "playchess.com"]
[Source "ChessBase"]
[SourceQuality "1"]
[TimeControl "900+3"]

{[%evp 9,72,27,56,61,54,53,43,16,35,5,34,1,43,17,25,17,35,25,9,11,41,0,0,7,13,-74,-57,-71,-60,-59,-66,-70,-79,-83,-84,-95,-85,-79,-85,-87,-78,-162,-116,-111,-64,-64,-68,-81,-50,-199,-91,-91,-69,-277,-279,-273,-261,-274,-267,-211,-150,-188,-64,-3053,-2727]} 1. d4 {[%emt 0:00:03]} g6 {[%emt 0:00:09]} 2. e4 {[%emt 0:00:05]} d6 {[%emt 0:00:04]} 3. Bd3 {[%emt 0:00:05]} Bg7 {[%emt 0:00:06]} 4. Nf3 {[%emt 0:00:02]} Nd7 {[%emt 0:00:27]} 5. O-O {[%emt 0:00:12]} b6 {[%emt 0:00:26]} 6. a4 {[%emt 0:00:42] B06: Modern Defence.} a6 {[%emt 0:00:09]} 7. Re1 {[%emt 0:00:30]} Bb7 {[%emt 0:00:05] [#]} 8. Bf4 $146 {[%emt 0:01:17] White is slightly better.} ({Predecessor:} 8. a5 b5 9. c4 bxc4 10. Bxc4 e6 11. Ra3 Ne7 12. Rb3 Rb8 13. Qe2 O-O 14. Bg5 {½-½ Hamdouchi,H (2562)-Adly,A (2636) Africa-chT rapid 2019 (4.1)}) 8... Ngf6 {[%emt 0:00:28][%cal Oe7e5,Bg8f6,Bf6d5,Bd5b4,Bb4d3][%mdl 32]} 9. h3 {[%emt 0:00:20]} O-O {[%emt 0:00:12][%cal Oe7e5]} 10. Nbd2 {[%emt 0:00:08]} Re8 {[%emt 0:00:52]} 11. e5 {[%emt 0:00:34]} Nd5 {[%emt 0:00:12]} 12. Bg3 {[%emt 0:00:11]} dxe5 {[%emt 0:00:13]} 13. dxe5 {[%emt 0:00:07]} Nc5 {[%emt 0:00:08]} 14. Bc4 {[%emt 0:00:18]} e6 {[%emt 0:01:18]} 15. Bh4 {[%emt 0:02:00]} Qd7 {[%emt 0:00:03]} 16. Bf1 {[%emt 0:01:57]} Nb4 {[%emt 0:00:23]} 17. Bg5 {[%emt 0:01:48]} (17. Qb1 $11 {remains equal.}) 17... h6 $17 {[%emt 0:00:59] Black is much more active.} (17... Nxa4 18. c3 Nd3 19. Qxa4 $11 (19. Bxd3 $2 Nxb2 20. Qb1 Nxd3 $19)) 18. Be3 {[%emt 0:00:43]} Bxf3 {[%emt 0:00:06]} 19. gxf3 {[%emt 0:00:28]} Nxa4 {[%emt 0:00:59]} (19... Bxe5 $2 20. Bxc5 (20. Bxh6 Bxb2 21. Rb1 Qd4 $17) 20... bxc5 21. Rxe5 $18) 20. c3 {[%emt 0:00:22]} Nxb2 {[%emt 0:00:05]} 21. Qb3 {[%emt 0:00:11]} N4d3 {[%emt 0:00:04]} 22. Reb1 {[%emt 0:00:05]} Bxe5 {[%emt 0:00:21]} 23. Rxb2 {[%emt 0:00:25]} Nxb2 {[%emt 0:00:03]} 24. Qxb2 {[%emt 0:00:00]} Bg7 {[%emt 0:00:52]} 25. h4 {[%emt 0:00:30]} (25. Rxa6 $17 Rxa6 26. Bxa6) 25... Red8 {[%emt 0:00:44]} (25... Qe7 $19 26. Bxa6 Red8) 26. f4 {[%emt 0:00:41]} e5 {[%emt 0:01:01]} (26... a5 $17 27. Nc4 Qe7) 27. fxe5 $1 $15 {[%emt 0:00:22]} Bxe5 {[%emt 0:00:08]} 28. Bg2 {[%emt 0:00:26][%cal Oe3h6]} Qg4 {[%emt 0:00:06]} 29. h5 {[%emt 0:01:25]} (29. Qc2 $15) 29... g5 {[%emt 0:00:16]} (29... gxh5 30. Qc2) (29... Rd6 $19 {and Black stays clearly on top. aiming for ...Rad8.} 30. Qb4 Qxb4 31. cxb4 Bxa1 32. Bxa8 gxh5) 30. Nf3 $17 {[%emt 0:00:14]} Bg7 {[%emt 0:00:12] ...Rd6 would be deadly.} 31. Nh2 $2 {[%emt 0:00:07] [#]} (31. Qc2 $15) 31... Rd1+ $19 {[%emt 0:00:06]} ({Inferior is} 31... Qxh5 32. Bxa8 Rxa8 33. Bd4 $15) 32. Rxd1 {[%emt 0:00:02]} Qxd1+ {[%emt 0:00:01]} 33. Nf1 {[%emt 0:00:00]} Re8 {[%emt 0:00:08]} 34. Qa2 {[%emt 0:00:14]} Bxc3 {[%emt 0:00:09] Threatens to win with ...a5.} 35. Qxa6 {[%emt 0:00:07]} Bd4 {[%emt 0:00:26]} ({Not} 35... Qxh5 36. Qb5 Re6 37. Qd7) (35... Be5 $19 36. Qb5 Re6) 36. Qa4 $2 {[%emt 0:00:02][%mdl 8192] [#]} Qxa4 {[%emt 0:00:03] Weighted Error Value: White=0.42/Black=0.28 (precise)} 0-1

[Event "AI Cup Div-2 2023"]
[Site "Online"]
[Date "2023.09.25"]
[Round "1.4"]
[White "Antipov, Mikhail Al."]
[Black "Andreikin, Dmitry"]
[Result "1/2-1/2"]
[ECO "C09"]
[WhiteElo "2600"]
[BlackElo "2729"]
[Annotator "TA"]
[PlyCount "170"]
[EventDate "2023.09.18"]
[EventType "k.o."]
[EventCountry "NET"]
[SourceTitle "playchess.com"]
[Source "ChessBase"]
[SourceQuality "1"]
[TimeControl "900+3"]

{[%evp 17,170,49,46,9,12,6,26,9,14,6,17,16,17,0,0,0,0,4,27,27,28,23,30,16,22,5,9,7,10,0,0,4,0,0,0,0,0,0,0,0,6,6,7,6,6,7,15,7,8,8,35,0,0,0,0,0,0,0,0,-46,-46,-79,-18,-200,-80,-80,0,-616,0,0,0,0,1463,1114,12835,12836,12837,0,0,0,0,0,0,0,0,0,0,0,0,0,0,0,0,0,0,0,0,0,0,0,0,0,0,0,0,0,0,0,0,0,0,0,0,0,0,0,0,0,0,0,0,0,0,0,0,0,0,0,0,0,0,0,0,0,0,0,0,0,0,0,0,0,0,0,0,0,0,0,0,0,0,0,0,0,0]} 1. e4 {[%emt 0:00:03]} e6 {[%emt 0:00:07]} 2. d4 {[%emt 0:00:04]} d5 {[%emt 0:00:01]} 3. Nd2 {[%emt 0:00:02]} c5 {[%emt 0:00:04]} 4. Ngf3 {[%emt 0:00:01]} Nc6 {[%emt 0:00:25]} 5. exd5 {[%emt 0:00:06]} exd5 {[%emt 0:00:01]} 6. Bb5 {[%emt 0:00:02]} Bd6 {[%emt 0:00:02]} 7. O-O {[%emt 0:00:07]} Nge7 {[%emt 0:00:01]} 8. dxc5 {[%emt 0:00:27]} Bxc5 {[%emt 0:00:00]} 9. Nb3 {[%emt 0:00:47]} Bb6 {[%emt 0:00:03]} 10. Nfd4 {[%emt 0:01:19] C09: French Tarrasch: 3...c5 4 exd5 exd5 5 Ngf3 Nc6.} O-O {[%emt 0:01:40]} 11. Be3 {[%emt 0:00:02] [#]} Qd6 $146 {[%emt 0:00:53]} ({Predecessor:} 11... Nxd4 12. Nxd4 Nf5 13. Nxf5 Bxf5 14. Bxb6 Qxb6 15. Bd3 Bxd3 16. Qxd3 Qxb2 17. Qxd5 Rad8 18. Qb3 Qxb3 19. axb3 a6 {½-½ Casares Ripoll,F (2103)-Martin Garcia,L (1834) Madrid-ch Seniors 65 2020 (8)}) 12. Bd3 {[%emt 0:00:59] White has an edge.} Nxd4 {[%emt 0:00:50]} 13. Nxd4 {[%emt 0:00:12]} Qf6 {[%emt 0:01:01]} (13... Nc6 {seems wilder.} 14. Nb5 Qd8 15. Qf3 Bxe3 16. fxe3 a6) 14. c3 {[%emt 0:00:23]} ({But not} 14. Qh5 g6 15. Qe2 Bxd4 $15) 14... Nc6 {[%emt 0:00:38]} 15. Re1 {[%emt 0:02:30]} Nxd4 {[%emt 0:01:18]} 16. Bxd4 {[%emt 0:00:00]} Bxd4 {[%emt 0:00:01]} 17. cxd4 {[%emt 0:00:02]} Bf5 {[%emt 0:00:02]} 18. Bxf5 {[%emt 0:01:14]} Qxf5 {[%emt 0:00:00]} 19. Re5 {[%emt 0:00:01]} Qd7 {[%emt 0:00:48]} 20. Qb3 {[%emt 0:00:36]} Rad8 {[%emt 0:00:03]} 21. Rae1 {[%emt 0:00:35]} Rfe8 {[%emt 0:03:05] [#]} 22. Qxd5 $1 {[%emt 0:00:19][%mdl 64] Deflection, Back Rank} Rxe5 {[%emt 0:00:08]} 23. Qxe5 $11 {[%emt 0:00:00][%mdl 4096] Endgame KQR-KQR} h6 {[%emt 0:01:33]} 24. Re4 {[%emt 0:01:30]} f5 {[%emt 0:00:09]} 25. Re2 {[%emt 0:02:50]} Qxd4 {[%emt 0:00:07]} 26. Qe6+ {[%emt 0:00:03]} Kh8 {[%emt 0:00:04][%cal Od4b2]} 27. h3 {[%emt 0:00:49]} Qf4 {[%emt 0:00:49]} 28. Qb3 {[%emt 0:00:22]} Qc1+ {[%emt 0:00:47]} 29. Kh2 {[%emt 0:00:02]} Qc7+ {[%emt 0:00:00]} 30. Qg3 {[%emt 0:00:01]} Rd7 {[%emt 0:00:37]} 31. Re5 {[%emt 0:00:26]} Rf7 {[%emt 0:00:18]} 32. h4 {[%emt 0:00:14]} Kh7 {[%emt 0:00:12]} 33. h5 {[%emt 0:00:02]} Rf6 {[%emt 0:00:06]} 34. f4 {[%emt 0:00:20][%cal Oe5f5]} Qf7 {[%emt 0:00:02][%csl LRa2,LRh5]} 35. Qf3 {[%emt 0:00:05]} Qxa2 {[%emt 0:00:05]} 36. Qxb7 {[%emt 0:00:10] Hoping for Re7.} Qf7 {[%emt 0:00:07]} 37. Qf3 {[%emt 0:00:05]} Rb6 {[%emt 0:00:01]} 38. b3 {[%emt 0:00:04]} Rxb3 $15 {[%emt 0:00:02]} ({Of course not} 38... Qxb3 39. Qxb3 Rxb3 40. Rxf5 $11) 39. Qe2 {[%emt 0:00:00]} Qf6 {[%emt 0:00:09]} (39... Ra3 $17) 40. g3 $2 {[%emt 0:00:02]} (40. Qc2 $1 $11 {and White has nothing to worry.} Qh4+ 41. Kg1 Qxf4 42. Rxf5 Qe3+ 43. Rf2+ Qd3 44. Qxd3+ Rxd3 45. Ra2) 40... Qb6 {[%emt 0:00:02]} (40... Qc6 $1 $19 {and Black stays clearly on top. Strongly threatening ...Qc3.} 41. Re3 Rb1) 41. Kh3 $17 {[%emt 0:00:05][%cal Oe2c2]} Qg1 {[%emt 0:00:10]} (41... Qc7 $17) 42. Qg2 $2 {[%emt 0:00:01][%mdl 8192] [#]} (42. Qe1 $11 Qxe1 43. Rxe1) 42... Qxg2+ $2 {[%emt 0:00:14]} (42... Qb1 $1 $19 43. Kh4 a6) 43. Kxg2 $19 {[%emt 0:00:00] KR-KR} Rb2+ {[%emt 0:00:08]} 44. Kh3 {[%emt 0:00:04]} g5 $2 {[%emt 0:00:07][%mdl 8192] [#]} (44... a6 $11) 45. fxg5 $1 $18 {[%emt 0:00:08]} ({Stronger than} 45. Rxf5 gxf4 46. Rxf4 Rb5 $11) 45... hxg5 {[%emt 0:00:01]} 46. Rxf5 {[%emt 0:00:01]} Kh6 {[%emt 0:00:00]} 47. g4 $2 {[%emt 0:00:00]} (47. Rf6+ $18 Kh7 48. Kg4) 47... Rb3+ {[%emt 0:00:05] The position is equal.} 48. Kg2 {[%emt 0:00:01]} Rb2+ {[%emt 0:00:01]} 49. Kf3 {[%emt 0:00:01]} Rb3+ {[%emt 0:00:01]} 50. Kf2 {[%emt 0:00:01]} Rb2+ {[%emt 0:00:01]} 51. Ke3 {[%emt 0:00:03]} Rb3+ {[%emt 0:00:04]} 52. Kf2 {[%emt 0:00:05]} Rb2+ {[%emt 0:00:01]} 53. Kg3 {[%emt 0:00:01]} a5 {[%emt 0:00:15]} 54. Rf6+ {[%emt 0:00:14]} (54. Rxa5 $5 Rb3+ $8 55. Kg2 Rb2+ 56. Kg3 Rb3+ 57. Kh2 Rb2+ 58. Kh3 Rb3+ 59. Kh2 Rb2+ 60. Kh3 Rb3+ 61. Kh2 $11) 54... Kh7 {[%emt 0:00:01]} 55. Ra6 {[%emt 0:00:02]} Rb3+ {[%emt 0:00:05]} 56. Kf2 {[%emt 0:00:01]} Rb4 {[%emt 0:00:01]} 57. Kf3 {[%emt 0:00:01]} a4 {[%emt 0:00:00]} 58. Ra5 {[%emt 0:00:06]} Kh6 {[%emt 0:00:02]} 59. Ra7 {[%emt 0:00:04]} Rf4+ {[%emt 0:00:02]} 60. Kg3 {[%emt 0:00:01]} Rb4 {[%emt 0:00:01]} 61. Ra6+ {[%emt 0:00:06]} Kh7 {[%emt 0:00:01]} 62. Rg6 {[%emt 0:00:03]} Rb5 {[%emt 0:00:02]} 63. Ra6 {[%emt 0:00:02] Against Ra5} Rb3+ {[%emt 0:00:04]} 64. Kf2 {[%emt 0:00:01]} Rb4 {[%emt 0:00:00]} 65. Kf3 {[%emt 0:00:02]} Rf4+ {[%emt 0:00:00]} 66. Kg3 {[%emt 0:00:01]} Rb4 {[%emt 0:00:01]} 67. Ra8 {[%emt 0:00:02]} Rb3+ {[%emt 0:00:02]} 68. Kf2 {[%emt 0:00:01]} a3 {[%emt 0:00:04]} 69. Ra4 {[%emt 0:00:05]} Rb2+ {[%emt 0:00:03]} 70. Kf3 {[%emt 0:00:04]} a2 {[%emt 0:00:01]} 71. Ra6 {[%emt 0:00:03]} Rc2 {[%emt 0:00:06]} 72. Ra7+ {[%emt 0:00:07]} Kh6 {[%emt 0:00:01]} 73. Ra6+ {[%emt 0:00:01]} Kh7 {[%emt 0:00:01]} 74. Ra8 {[%emt 0:00:05]} Rb2 {[%emt 0:00:08]} 75. Ra5 {[%emt 0:00:02]} Kh6 {[%emt 0:00:02]} 76. Ra7 {[%emt 0:00:02]} Rc2 {[%emt 0:00:03]} 77. Ke4 {[%emt 0:00:03]} Rc4+ {[%emt 0:00:06]} 78. Kf3 {[%emt 0:00:03]} Rc3+ {[%emt 0:00:02]} 79. Kf2 {[%emt 0:00:03]} Rc4 {[%emt 0:00:08]} 80. Kf3 {[%emt 0:00:06]} Rc3+ {[%emt 0:00:02]} 81. Kg2 {[%emt 0:00:03]} Rc2+ {[%emt 0:00:03]} 82. Kg3 {[%emt 0:00:01]} Rc3+ {[%emt 0:00:01]} 83. Kf2 {[%emt 0:00:01]} Rc4 {[%emt 0:00:02]} 84. Ra6+ {[%emt 0:00:01]} Kh7 {[%emt 0:00:02]} 85. Kf3 {[%emt 0:00:00]} Rc2 {[%emt 0:00:03] Weighted Error Value: White=0.38/Black=0.24 (precise)} 1/2-1/2